Workbook

Sheet 报价汇总表
A1: 投标报价汇总表
A2: 工程名称：第四届中国绿化博览会游客服务中心、花园餐厅、都匀台暖通专业分包工程
A3: 序号 | B3: 项目名称 | C3: 投标总价 | D3: 备注
A4: 一 | B4: 游客服务中心
A5: 1 | B5: VRV空调工程
A6: 二 | B6: 花园餐厅
A7: 1 | B7: VRV空调工程
A8: 三 | B8: 都匀台
A9: 1 | B9: VRV空调工程
A10: 2 | B10: 排风工程
A11: 3 | B11: 新风工程
B12: 合计：
A14: 1、全费用单价为包含人工费（包括人员加班工资、差旅及窝工费）、材料费、机械费、管理费、利润、风险、规费、税金的包工包料价格，包含深化设计、监理资料及竣工图绘制费用，包括水电、卸货（含主要设备）、材料保管、二次搬运、防锈、上楼、脚手架、各种保险、加班、临时设施、赶工措施、已完工项目成品保护措施、夜间照明、安全文明施工等费用，施工人员的食宿费、劳保费用、办公费、生活生产水电费、保险费也包含在报价里。包含系统系统检测及调试费。
A15: 2、投标人应充分踏勘现场，对各区域各节点施工作业条件充分认识，投标报价已充分考虑现场构件运输、吊装等条件，在报价中综合体现，进场施工后招标人不做任何补偿。
A16: 3、报价税率按9%考虑报价，提供9%税率的增值税专用发票。
B18: 投标单位（公章）：
B19: 授权委托人：
B20: 日 期： 2020 年 月 日

Sheet 游客中心空调
A1: 工程量报价清单
A2: 项目名称：第四届中国绿博会游客服务中心、花园餐厅、都匀台暖通专业分包工程
A3: 序号 | B3: 项目名称 | C3: 项目特征 | D3: 工作内容 | E3: 单位 | F3: 数量 | G3: 全费用综合单价 | J3: 合价 | K3: 主要设备、材料 | L3: 备注
G4: 主要设备费/材料单价 | H4: 安装费单价 | I4: 小计
A5: 一 | B5: 游客服务中心暖通工程
A6: （一） | B6: VRV空调工程
A7: 1 | B7: 室外机 | C7: 1、名称：多联机室外机（AC-1F-1、AC-1F-4） 2、安装部位：室外 3、设备形式：顶出风全直流变频主机（喷气增焓压缩机） 4、参数：制冷量73KW，制热量81KW，IPLV8.5 5、安装符合规范要求，包含辅材 | D7: 1.开箱、检查. 2.就位、找正、找平、固定、试运转 | E7: 台 | F7: 2 | G7: / | I7: =H7 -> 0.00 | J7: =I7*F7 -> 0.00 | K7: 室外机 | L7: 设备费另计
A8: 2 | B8: 室外机 | C8: 1、名称：多联机室外机（AC-1F-2、AC-2F-1、AC-1F-6） 2、安装部位：室外 3、设备形式：顶出风全直流变频主机（喷气增焓压缩机） 4、参数：制冷量56KW，制热量63KW，IPLV8.8 5、安装符合规范要求，包含辅材 | D8: 1.开箱、检查. 2.就位、找正、找平、固定、试运转 | E8: 台 | F8: 3 | G8: / | I8: =H8 -> 0.00 | J8: =I8*F8 -> 0.00 | K8: 室外机 | L8: 设备费另计
A9: 3 | B9: 室外机 | C9: 1、名称：多联机室外机（AC-1F-3、AC-2F-2、AC-1F-6） 2、安装部位：室外 3、设备形式：顶出风全直流变频主机（喷气增焓压缩机） 4、参数：制冷量61.5KW，制热量69KW，IPLV8.8 5、安装符合规范要求，包含辅材 | D9: 1.开箱、检查. 2.就位、找正、找平、固定、试运转 | E9: 台 | F9: 3 | G9: / | I9: 0.00 | J9: 0.00 | K9: 室外机 | L9: 设备费另计
A10: 4 | B10: 室内机 | C10: 1、名称：多联体室内机 2、安装部位：安防大厅、纪念品商店、游客服务大厅 3、安装形式：吊装、嵌入安装 4、设备形式：四面出风嵌入式 5、参数：制冷量6.3KW，制热量7.1KW 6、安装符合规范要求，包含辅材 | D10: 1.开箱、检查. 2.就位、找正、找平、固定、试运转 | E10: 台 | F10: =4+11+8+8 -> 31 | G10: / | I10: 0.00 | J10: 0.00 | K10: 室外机 | L10: 设备费另计
A11: 5 | B11: 室内机 | C11: 1、名称：多联体室内机 2、安装部位：办公室 3、安装形式：吊装、嵌入安装 4、设备形式：四面出风嵌入式 5、参数：制冷量10KW，制热量11.2KW 6、安装符合规范要求，包含辅材 | D11: 1.开箱、检查. 2.就位、找正、找平、固定、试运转 | E11: 台 | F11: 3 | G11: / | I11: 0.00 | J11: 0.00 | K11: 室外机 | L11: 设备费另计
A12: 6 | B12: 室内机 | C12: 1、名称：多联体室内机 2、安装部位：房间、生态饮食 3、安装形式：吊装、嵌入安装 4、设备形式：四面出风嵌入式 5、参数：制冷量8KW，制热量9KW 6、安装符合规范要求，包含辅材 | D12: 1.开箱、检查. 2.就位、找正、找平、固定、试运转 | E12: 台 | F12: =6+6+6+6 -> 24 | G12: / | I12: 0.00 | J12: 0.00 | K12: 室外机 | L12: 设备费另计
A13: 7 | B13: 室内机 | C13: 1、名称：多联体室内机 2、安装部位：接待室 3、安装形式：吊装、嵌入安装 4、设备形式：四面出风嵌入式 5、参数：制冷量5.6KW，制热量6.3KW 6、安装符合规范要求，包含辅材 | D13: 1.开箱、检查. 2.就位、找正、找平、固定、试运转 | E13: 台 | F13: 2 | G13: / | I13: 0.00 | J13: 0.00 | K13: 室外机 | L13: 设备费另计
A14: 8 | B14: 室内机 | C14: 1、名称：多联体室内机 2、安装部位：医疗室、备菜间、生态饮食 3、安装形式：吊装安装 4、设备形式：风管式 5、参数：制冷量4.5KW，制热量5KW 6、安装符合规范要求，包含辅材 | D14: 1.开箱、检查. 2.就位、找正、找平、固定、试运转 | E14: 台 | F14: =2+1+2 -> 5 | G14: / | I14: 0.00 | J14: 0.00 | K14: 室外机 | L14: 设备费另计
A15: 9 | B15: 室内机 | C15: 1、名称：多联体室内机 2、安装部位：广播室 3、安装形式：吊装安装 4、设备形式：风管式 5、参数：制冷量2.8KW，制热量3.2KW 6、安装符合规范要求，包含辅材 | D15: 1.开箱、检查. 2.就位、找正、找平、固定、试运转 | E15: 台 | F15: 1 | G15: / | I15: 0.00 | J15: 0.00 | K15: 室外机 | L15: 设备费另计
A16: 10 | B16: 室内机 | C16: 1、名称：多联体室内机 2、安装部位：员工食堂、备菜间 3、安装形式：吊装安装 4、设备形式：风管式 5、参数：制冷量7.1KW，制热量8KW 6、安装符合规范要求，包含辅材 | D16: 1.开箱、检查. 2.就位、找正、找平、固定、试运转 | E16: 台 | F16: =2+1 -> 3 | G16: / | I16: 0.00 | J16: 0.00 | K16: 室外机 | L16: 设备费另计
A17: 11 | B17: 室内机 | C17: 1、名称：多联体室内机 2、安装部位：后勤办公室 3、安装形式：吊装安装 4、设备形式：风管式 5、参数：制冷量3.6KW，制热量4KW 6、安装符合规范要求，包含辅材 | D17: 1.开箱、检查. 2.就位、找正、找平、固定、试运转 | E17: 台 | F17: 2 | G17: / | I17: 0.00 | J17: 0.00 | K17: 室外机 | L17: 设备费另计
A18: 12 | B18: 优质脱氧化磷无缝紫铜管 | C18: 1、安装部位:室内 2、介质:R410a 3、规格、压力等级:φ31.8*1.2 4、连接形式:氧焊 5、压力试验及吹、洗设计要求:气压试验、空气吹扫 | D18: 留(打)堵墙(板)洞、调直、切管、坡口、焊接、管道及管件安装、水压试验及水冲洗. | E18: m | F18: 87.65 | I18: =H18+G18 -> 0.00 | J18: 0.00 | K18: 紫铜管
A19: 13 | B19: 优质脱氧化磷无缝紫铜管 | C19: 1、安装部位:室内 2、介质:R410a 3.规格、压力等级:φ28.6*1.2 4.连接形式:氧焊 5.压力试验及吹、洗设计要求:气压试验、空气吹扫 | D19: 留(打)堵墙(板)洞、调直、切管、坡口、焊接、管道及管件安装、水压试验及水冲洗. | E19: m | F19: =138.72+17.24 -> 155.96 | I19: =H19+G19 -> 0.00 | J19: 0.00 | K19: 紫铜管
A20: 14 | B20: 优质脱氧化磷无缝紫铜管 | C20: 1、安装部位:室内 2、介质:R410a 3、规格、压力等级:φ22.2*1.2 4、连接形式:氧焊 5、压力试验及吹、洗设计要求:气压试验、空气吹扫 | D20: 留(打)堵墙(板)洞、调直、切管、坡口、焊接、管道及管件安装、水压试验及水冲洗. | E20: m | F20: 31.29 | I20: 0.00 | J20: 0.00 | K20: 紫铜管
A21: 15 | B21: 优质脱氧化磷无缝紫铜管 | C21: 1、安装部位:室内 2、介质:R410a 3、规格、压力等级:φ19.05*1 4、连接形式:氧焊 5、压力试验及吹、洗设计要求:气压试验、空气吹扫 | D21: 留(打)堵墙(板)洞、调直、切管、坡口、焊接、管道及管件安装、水压试验及水冲洗. | E21: m | F21: =87.65+25.95 -> 113.6 | I21: 0.00 | J21: 0.00 | K21: 紫铜管
A22: 16 | B22: 优质脱氧化磷无缝紫铜管 | C22: 1、安装部位:室内 2、介质:R410a 3、规格、压力等级:φ15.88*1 4、连接形式:氧焊 5、压力试验及吹、洗设计要求:气压试验、空气吹扫 | D22: 留(打)堵墙(板)洞、调直、切管、坡口、焊接、管道及管件安装、水压试验及水冲洗. | E22: m | F22: =138.72+121.63 -> 260.35 | I22: 0.00 | J22: 0.00 | K22: 紫铜管
A23: 17 | B23: 优质脱氧化磷无缝紫铜管 | C23: 1、安装部位:室内 2、介质:R410a 3、规格、压力等级:φ12.7*0.8 4、连接形式:氧焊 5、压力试验及吹、洗设计要求:气压试验、空气吹扫 | D23: 留(打)堵墙(板)洞、调直、切管、坡口、焊接、管道及管件安装、水压试验及水冲洗. | E23: m | F23: =17.24+269.9 -> 287.14 | I23: 0.00 | J23: 0.00 | K23: 紫铜管
A24: 18 | B24: 优质脱氧化磷无缝紫铜管 | C24: 1、安装部位:室内 2、介质:R410a 3、规格、压力等级:φ9.53*0.8 4、连接形式:氧焊 5、压力试验及吹、洗设计要求:气压试验、空气吹扫 | D24: 留(打)堵墙(板)洞、调直、切管、坡口、焊接、管道及管件安装、水压试验及水冲洗. | E24: m | F24: =31.291+25.95+121.63 -> 178.871 | I24: 0.00 | J24: 0.00 | K24: 紫铜管
A25: 19 | B25: 优质脱氧化磷无缝紫铜管 | C25: 1、安装部位:室内 2、介质:R410a 3、规格、压力等级:φ6.4*0.8 4、连接形式:氧焊 5、压力试验及吹、洗设计要求:气压试验、空气吹扫 | D25: 留(打)堵墙(板)洞、调直、切管、坡口、焊接、管道及管件安装、水压试验及水冲洗. | E25: m | F25: 269.9 | I25: 0.00 | J25: 0.00 | K25: 紫铜管
A26: 20 | B26: 分歧器 | C26: 1、名称:分歧管 2、材质:铜 3、规格、压力等级:φ6.4~38.1 4、焊接方法:氧焊 | D26: 焊接、水压试验及水冲洗. | E26: 个 | F26: 55 | I26: 0.00 | J26: 0.00 | K26: 分歧器
A27: 21 | B27: 冷凝水PVC管 | C27: 1、安装部位:室内 2、介质:水 3、规格、压力等级:Φ40 4、压力试验及吹、洗设计要求:试压 | D27: 留(打)堵墙(板)洞、切管、组对、粘接, 管道及管件安装, 注水试验. | E27: m | F27: 140 | I27: 0.00 | J27: 0.00 | K27: PVC管
A28: 22 | B28: 冷凝水PVC管 | C28: 1、安装部位:室内 2、介质:水 3、规格、压力等级:Φ32 4、压力试验及吹、洗设计要求:试压 | D28: 留(打)堵墙(板)洞、切管、组对、粘接, 管道及管件安装, 注水试验. | E28: m | F28: 289 | I28: 0.00 | J28: 0.00 | K28: PVC管
A29: 23 | B29: 碳钢通风管道 | C29: 1、名称:矩形风管 2、材质:镀锌铁皮 3、板材厚度:0.6mm 4、管件、法兰等附件及支架设计要求 ，咬口制作，法兰连接 | D29: 1.制作:放样、下料、折方、轧口、咬口、制作直管、管件、钻孔、焊接、组对.2.安装:找标高、打支架墙洞、配合预留孔洞、组装、风管就位、找平、找正、加密封胶条、螺栓、紧固. | E29: m2 | F29: =59.5 -> 59.50 | I29: 0.00 | J29: 0.00 | K29: 镀锌铁皮风管
A30: 24 | B30: 百叶风口 | C30: 1、名称:双层活动百叶风口 2、规格:综合 3、材质：铝合金 | D30: 对口、上螺栓、制垫、加垫、找正、找平、固定、试动、调整. | E30: m2 | F30: =6*1.8+10*0.7*0.16+6*0.5*0.16 -> 12.4 | I30: 0.00 | J30: 0.00 | K30: 百叶风口
A31: 25 | B31: 管道保温 | C31: 1、安装部位:铜管、PVC管 2、规格材质：橡塑管壳（难燃B1级）保温，厚度10mm | D31: 运料、下料、安装、贴缝、修理找平. | E31: m | F31: =1384.76*0.8*0.5 -> 553.90 | I31: 0.00 | J31: 0.00 | K31: 保温材料
A32: 26 | B32: 管道保温 | C32: 1、安装部位:铜管、PVC管 2、规格材质：橡塑管壳（难燃B1级）保温，厚度20mm 3、保温胶带 | D32: 运料、下料、安装、贴缝、修理找平. | E32: m | F32: =1384.76*0.8*0.5 -> 553.90 | I32: 0.00 | J32: 0.00 | K32: 保温材料
A33: 27 | B33: 管道保温 | C33: 1、安装部位:铜管、PVC管 2、规格材质：橡塑管壳（难燃B1级）保温，厚度30mm 3、保温胶带 | D33: 运料、下料、安装、贴缝、修理找平. | E33: m | F33: =1384.76*0.2+429 -> 705.95 | I33: 0.00 | J33: 0.00 | K33: 保温材料
A34: 28 | B34: 通风管道绝热 | C34: 1、安装部位:风管 2、绝热材料品种:离心玻璃棉（不燃A级）50mm 3、保温胶带 | D34: 运料、拆包、裁料、安装、贴缝、修理找平. | E34: m3 | F34: =59.5*0.05 -> 2.98 | I34: 0.00 | J34: 0.00 | K34: 保温材料
A35: 29 | B35: 设备支架 | C35: 1、名称：室内吊顶式空调支架制作安装 2、防锈处理 | D35: 切断、调直、煨制、钻孔、组对、焊接. | E35: 套 | F35: 66 | I35: 0.00 | J35: 0.00 | K35: 支架
A36: 30 | B36: 管道支架 | C36: 1、名称：PVC管、铜管支架制作安装 2、防锈处理 | D36: 切断、调直、煨制、钻孔、组对、焊接. | E36: 套 | F36: =73+100 -> 173 | I36: 0.00 | J36: 0.00 | K36: 支架
A37: 31 | B37: 通风管支架 | C37: 1、碳钢通风管道支架制作安装 2、防锈处理 | D37: 切断、调直、煨制、钻孔、组对、焊接. | E37: kg | F37: =11*5 -> 55 | I37: 0.00 | J37: 0.00 | K37: 铁件
A38: 32 | B38: 冷媒添加 | C38: 1、空调管道加R410a | D38: 添加、密封 | E38: 项 | F38: 1 | I38: 0.00 | J38: 0.00 | K38: R410a
A39: 33 | B39: 线控器 | C39: 1、名称:线控器 2、安装方式:暗装，含接线盒 | D39: 安装盒体/面板、接线、连接处处理. | E39: 套 | F39: 33 | G39: / | I39: =H39 -> 0.00 | J39: 0.00 | K39: 线控器 | L39: 线控器主材费另计
A40: 34 | B40: 配管 | C40: 1、规格：Φ20 2、敷设方式：沿墙暗敷，顶部明管 | D40: 测位、划线、接管、配管、固定、穿引线. | E40: m | F40: =33*8 -> 264 | I40: =H40+G40 -> 0.00 | J40: 0.00 | K40: 电线管
A41: 35 | B41: 配线 | C41: 1、名称：信号线、控制线 2、规格：按品牌配置 | D41: 检查、抽测电缆、清理管道、布放电缆、绑扎电缆、封堵出口等. | E41: m | F41: =264*2 -> 528 | I41: =H41+G41 -> 0.00 | J41: 0.00 | K41: 线缆
B42: 合计： | J42: =SUM(J3:J41) -> 0.00
A43: 1、全费用单价为包含人工费（包括人员加班工资、差旅及窝工费）、材料费、机械费、管理费、利润、风险、规费、税金的包工包料价格，包含深化设计、监理资料及竣工图绘制费用，包括水电、卸货（含主要设备）、材料保管、二次搬运、防锈、上楼、脚手架、各种保险、加班、临时设施、赶工措施、已完工项目成品保护措施、夜间照明、安全文明施工等费用，施工人员的食宿费、劳保费用、办公费、生活生产水电费、保险费也包含在报价里。其中：主要设备费/材料单价包含主要设备费、主要材料费、运输费、运输损耗费、施工损耗费及相关费用9%的增值税税金。安装单价包含人工费、机械费、管理费、利润、及除设备费、材料费以外其他所有费用及相关费用9%的增值税税金，包含系统系统检测及调试费。
A44: 2、设备费/材料、安装费报价税率按9%考虑，提供9%税率的增值税专用发票。
B46: 投标单位（公章）：
B47: 授权委托人：
B48: 日 期： 2020 年 月 日

Sheet 花园餐厅空调
A1: 工程量报价清单
A2: 项目名称：第四届中国绿博会游客服务中心、花园餐厅、都匀台暖通专业分包工程
A3: 序号 | B3: 项目名称 | C3: 项目特征 | D3: 工作内容 | E3: 单位 | F3: 数量 | G3: 全费用综合单价 | J3: 合价 | K3: 主要设备、材料 | L3: 备注
G4: 主要设备费/材料单价 | H4: 安装费单价 | I4: 小计
A5: 一 | B5: 花园餐厅暖通工程
A6: （一） | B6: VRV空调工程
A7: 1 | B7: 室外机 | C7: 1、名称：多联机室外机（AC-1F-1/2/3/4、AC-2F-1/2） 2、安装部位：室外 3、设备形式：顶出风全直流变频主机（喷气增焓压缩机） 4、参数：制冷量90KW，制热量100KW，IPLV8.3 5、安装符合规范要求，包含辅材 | D7: 1.开箱、检查. 2.就位、找正、找平、固定、试运转 | E7: 台 | F7: =2+2+1+1 -> 6 | G7: / | I7: =H7 -> 0.00 | J7: =I7*F7 -> 0.00 | K7: 室外机 | L7: 设备费另计
A8: 2 | B8: 室外机 | C8: 1、名称：多联机室外机（AC-1F-5/8） 2、安装部位：室外 3、设备形式：顶出风全直流变频主机（喷气增焓压缩机） 4、参数：制冷量73KW，制热量81.5KW，IPLV8.5 5、安装符合规范要求，包含辅材 | D8: 1.开箱、检查. 2.就位、找正、找平、固定、试运转 | E8: 台 | F8: =1+1 -> 2 | G8: / | I8: 0.00 | J8: =I8*F8 -> 0.00 | K8: 室外机 | L8: 设备费另计
A9: 3 | B9: 室外机 | C9: 1、名称：多联机室外机（AC-1F-6/7） 2、安装部位：室外 3、设备形式：顶出风全直流变频主机（喷气增焓压缩机） 4、参数：制冷量73KW，制热量81.5KW，IPLV8.5 5、安装符合规范要求，包含辅材 | D9: 1.开箱、检查. 2.就位、找正、找平、固定、试运转 | E9: 台 | F9: =1+1 -> 2 | G9: / | I9: 0.00 | J9: 0.00 | K9: 室外机 | L9: 设备费另计
A10: 4 | B10: 室内机 | C10: 1、名称：多联体室内机 2、安装部位：一层餐厅1-4，一层餐厅1-2 3、安装形式：吊装安装 4、设备形式：风管式 5、参数：制冷量14KW，制热量16KW 6、安装符合规范要求，包含辅材 | D10: 1.开箱、检查. 2.就位、找正、找平、固定、试运转 | E10: 台 | F10: 54 | G10: / | I10: 0.00 | J10: 0.00 | K10: 室外机 | L10: 设备费另计
A11: 5 | B11: 优质脱氧化磷无缝紫铜管 | C11: 1、安装部位:室内 2、介质:R410a 3、规格、压力等级:φ31.8*1.2 4、连接形式:氧焊 5、压力试验及吹、洗设计要求:气压试验、空气吹扫 | D11: 留(打)堵墙(板)洞、调直、切管、坡口、焊接、管道及管件安装、水压试验及水冲洗. | E11: m | F11: 84.68 | I11: =H11+G11 -> 0.00 | J11: 0.00 | K11: 紫铜管 | R11: 1.2
A12: 6 | B12: 优质脱氧化磷无缝紫铜管 | C12: 1、安装部位:室内 2、介质:R410a 3、规格、压力等级:φ28.6*1.2 4、连接形式:氧焊 5、压力试验及吹、洗设计要求:气压试验、空气吹扫 | D12: 留(打)堵墙(板)洞、调直、切管、坡口、焊接、管道及管件安装、水压试验及水冲洗. | E12: m | F12: =104.56+68.49 -> 173.05 | I12: 0.00 | J12: 0.00 | K12: 紫铜管
A13: 7 | B13: 优质脱氧化磷无缝紫铜管 | C13: 1、安装部位:室内 2、介质:R410a 3、规格、压力等级:φ22.2*1.2 4、连接形式:氧焊 5、压力试验及吹、洗设计要求:气压试验、空气吹扫 | D13: 留(打)堵墙(板)洞、调直、切管、坡口、焊接、管道及管件安装、水压试验及水冲洗. | E13: m | F13: 55.12 | I13: 0.00 | J13: 0.00 | K13: 紫铜管
A14: 8 | B14: 优质脱氧化磷无缝紫铜管 | C14: 1、安装部位:室内 2、介质:R410a 3、规格、压力等级:φ19.05*1 4、连接形式:氧焊 5、压力试验及吹、洗设计要求:气压试验、空气吹扫 | D14: 留(打)堵墙(板)洞、调直、切管、坡口、焊接、管道及管件安装、水压试验及水冲洗. | E14: m | F14: =84.68+80.5 -> 165.18 | I14: 0.00 | J14: 0.00 | K14: 紫铜管
A15: 9 | B15: 优质脱氧化磷无缝紫铜管 | C15: 1、安装部位:室内 2、介质:R410a 3、规格、压力等级:φ15.88*1 4、连接形式:氧焊 5、压力试验及吹、洗设计要求:气压试验、空气吹扫 | D15: 留(打)堵墙(板)洞、调直、切管、坡口、焊接、管道及管件安装、水压试验及水冲洗. | E15: m | F15: 104.65 | I15: 0.00 | J15: 0.00 | K15: 紫铜管
A16: 10 | B16: 优质脱氧化磷无缝紫铜管 | C16: 1、安装部位:室内 2、介质:R410a 3、规格、压力等级:φ12.7*0.8 4、连接形式:氧焊 5、压力试验及吹、洗设计要求:气压试验、空气吹扫 | D16: 留(打)堵墙(板)洞、调直、切管、坡口、焊接、管道及管件安装、水压试验及水冲洗. | E16: m | F16: =68.49+120.58 -> 189.07 | I16: 0.00 | J16: 0.00 | K16: 紫铜管
A17: 11 | B17: 优质脱氧化磷无缝紫铜管 | C17: 1、安装部位:室内 2、介质:R410a 3、规格、压力等级:φ9.53*0.8 4、连接形式:氧焊 5、压力试验及吹、洗设计要求:气压试验、空气吹扫 | D17: 留(打)堵墙(板)洞、调直、切管、坡口、焊接、管道及管件安装、水压试验及水冲洗. | E17: m | F17: =55.12+80.5 -> 135.62 | I17: 0.00 | J17: 0.00 | K17: 紫铜管
A18: 12 | B18: 优质脱氧化磷无缝紫铜管 | C18: 1、安装部位:室内 2、介质:R410a 3、规格、压力等级:φ6.4*0.8 4、连接形式:氧焊 5、压力试验及吹、洗设计要求:气压试验、空气吹扫 | D18: 留(打)堵墙(板)洞、调直、切管、坡口、焊接、管道及管件安装、水压试验及水冲洗. | E18: m | F18: 120.58 | I18: =H18+G18 -> 0.00 | J18: 0.00 | K18: 紫铜管
A19: 13 | B19: 分歧器 | C19: 1、名称:分歧管 2、材质:铜 3、规格、压力等级:φ6.4~38.1 4、焊接方法:氧焊 | D19: 焊接、水压试验及水冲洗. | E19: 个 | F19: 44 | I19: 0.00 | J19: 0.00 | K19: 分歧器
A20: 14 | B20: 冷凝水PVC管 | C20: 1、安装部位:室内 2、介质:水 3、规格、压力等级:Φ32 4、压力试验及吹、洗设计要求:试压 | D20: 留(打)堵墙(板)洞、切管、组对、粘接, 管道及管件安装, 注水试验. | E20: m | F20: 419.35 | I20: 0.00 | J20: 0.00 | K20: PVC管
A21: 15 | B21: 碳钢通风管道 | C21: 1、名称:矩形风管 2、材质:镀锌铁皮 3、板材厚度:0.6mm 4、管件、法兰等附件及支架设计要求 ，咬口制作，法兰连接 | D21: 1.制作:放样、下料、折方、轧口、咬口、制作直管、管件、钻孔、焊接、组对.2.安装:找标高、打支架墙洞、配合预留孔洞、组装、风管就位、找平、找正、加密封胶条、螺栓、紧固. | E21: m2 | F21: =554*0.6 -> 332.40 | I21: 0.00 | J21: 0.00 | K21: 镀锌铁皮风管
A22: 16 | B22: 碳钢通风管道 | C22: 1、名称:矩形风管 2、材质:镀锌铁皮 3、板材厚度:0.8mm 4、管件、法兰等附件及支架设计要求 ，咬口制作，法兰连接 | D22: 1.制作:放样、下料、折方、轧口、咬口、制作直管、管件、钻孔、焊接、组对.2.安装:找标高、打支架墙洞、配合预留孔洞、组装、风管就位、找平、找正、加密封胶条、螺栓、紧固. | E22: m2 | F22: =554*0.4 -> 221.60 | I22: 0.00 | J22: 0.00 | K22: 镀锌铁皮风管
A23: 17 | B23: 百叶风口 | C23: 1、名称:双层活动百叶风口 2、规格:综合 3、材质：铝合金 | D23: 对口、上螺栓、制垫、加垫、找正、找平、固定、试动、调整. | E23: m2 | F23: =98*1.8 -> 176.4 | I23: 0.00 | J23: 0.00 | K23: 百叶风口 | O23: =176*1.4 -> 246.4
A24: 18 | B24: 管道保温 | C24: 1、安装部位:铜管、PVC管 2、规格材质：橡塑管壳（难燃B1级）保温，厚度10mm | D24: 运料、下料、安装、贴缝、修理找平. | E24: m | F24: =1027*0.6 -> 616.2 | I24: 0.00 | J24: 0.00 | K24: 保温材料
A25: 19 | B25: 管道保温 | C25: 1、安装部位:铜管、PVC管 2、规格材质：橡塑管壳（难燃B1级）保温，厚度20mm 3、保温胶带 | D25: 运料、下料、安装、贴缝、修理找平. | E25: m | F25: =1027*0.4 -> 410.8 | I25: 0.00 | J25: 0.00 | K25: 保温材料
A26: 20 | B26: 管道保温 | C26: 1、安装部位:铜管、PVC管 2、规格材质：橡塑管壳（难燃B1级）保温，厚度30mm 3、保温胶带 | D26: 运料、下料、安装、贴缝、修理找平. | E26: m | F26: 419 | I26: 0.00 | J26: 0.00 | K26: 保温材料
A27: 21 | B27: 通风管道绝热 | C27: 1、安装部位:风管 2、绝热材料品种:离心玻璃棉（不燃A级）50mm 3、保温胶带 | D27: 运料、拆包、裁料、安装、贴缝、修理找平. | E27: m3 | F27: =554*0.05*0.5 -> 13.85 | I27: =H27+G27 -> 0.00 | J27: 0.00 | K27: 保温材料
A28: 22 | B28: 通风管道绝热 | C28: 1、安装部位:风管 2、绝热材料品种:橡塑保温（难燃B1级）保温，厚度20mm 3、保温胶带 | D28: 运料、下料、安装、涂胶、贴缝、修理找平. | E28: m3 | F28: =554*0.02*0.5 -> 5.54 | I28: 0.00 | J28: 0.00 | K28: 保温材料
A29: 23 | B29: 设备支架 | C29: 1、名称：室内吊顶式空调支架制作安装 2、防锈处理 | D29: 切断、调直、煨制、钻孔、组对、焊接. | E29: 套 | F29: 54 | I29: 0.00 | J29: 0.00 | K29: 支架
A30: 24 | B30: 管道支架 | C30: 1、名称：PVC管、铜管支架制作安装 2、防锈处理 | D30: 切断、调直、煨制、钻孔、组对、焊接. | E30: 套 | F30: 205 | I30: 0.00 | J30: 0.00 | K30: 支架
A31: 25 | B31: 通风管支架 | C31: 1、碳钢通风管道支架制作安装 2、防锈处理 | D31: 切断、调直、煨制、钻孔、组对、焊接. | E31: kg | F31: =54*5 -> 270 | I31: 0.00 | J31: 0.00 | K31: 铁件
A32: 26 | B32: 冷媒添加 | C32: 1、空调管道加R410a | D32: 添加、密封 | E32: 项 | F32: 1 | I32: 0.00 | J32: 0.00 | K32: R410a
A33: 27 | B33: 线控器 | C33: 1、名称:线控器 2、安装方式:暗装，含接线盒 | D33: 安装盒体/面板、接线、连接处处理. | E33: 套 | F33: 27 | G33: / | I33: =H33 -> 0.00 | J33: 0.00 | K33: 线控器 | L33: 线控器主材费另计
A34: 28 | B34: 配管 | C34: 1、规格：Φ20 2、敷设方式：沿墙暗敷，顶部明管 | D34: 测位、划线、接管、配管、固定、穿引线. | E34: m | F34: =27*8 -> 216 | I34: =H34+G34 -> 0.00 | J34: 0.00 | K34: 电线管
A35: 29 | B35: 配线 | C35: 1、名称：信号线、控制线 2、规格：按品牌配置 | D35: 检查、抽测电缆、清理管道、布放电缆、绑扎电缆、封堵出口等. | E35: m | F35: =216*2 -> 432 | I35: =H35+G35 -> 0.00 | J35: 0.00 | K35: 线缆
B36: 合计： | J36: =SUM(J6:J35) -> 0.00
A37: 1、全费用单价为包含人工费（包括人员加班工资、差旅及窝工费）、材料费、机械费、管理费、利润、风险、规费、税金的包工包料价格，包含深化设计、监理资料及竣工图绘制费用，包括水电、卸货（含主要设备）、材料保管、二次搬运、防锈、上楼、脚手架、各种保险、加班、临时设施、赶工措施、已完工项目成品保护措施、夜间照明、安全文明施工等费用，施工人员的食宿费、劳保费用、办公费、生活生产水电费、保险费也包含在报价里。其中：主要设备费/材料单价包含主要设备费、主要材料费、运输费、运输损耗费、施工损耗费及相关费用9%的增值税税金。安装单价包含人工费、机械费、管理费、利润、及除设备费、材料费以外其他所有费用及相关费用9%的增值税税金，包含系统系统检测及调试费。
A38: 2、设备费/材料、安装费报价税率按9%考虑，提供9%税率的增值税专用发票。
B40: 投标单位（公章）：
B41: 授权委托人：
B42: 日 期： 2020 年 月 日

Sheet 都匀台
A1: 工程量报价清单
A2: 项目名称：第四届中国绿博会游客服务中心、花园餐厅、都匀台暖通专业分包工程
A3: 序号 | B3: 项目名称 | C3: 项目特征 | D3: 工作内容 | E3: 单位 | F3: 数量 | G3: 全费用综合单价 | J3: 合价 | K3: 主要设备、材料 | L3: 备注
G4: 主要设备费/材料单价 | H4: 安装费单价 | I4: 小计
A5: 一 | B5: 都匀台暖通工程
A6: （一） | B6: VRV空调工程
A7: 1 | B7: 室外机 | C7: 1、名称：多联机室外机（AC-1-1F） 2、安装部位：室外 3、设备形式：顶出风全直流变频主机（喷气增焓压缩机） 4、参数：制冷量73KW，制热量81KW，IPLV8.5 5、安装符合规范要求，包含辅材 | D7: 1.开箱、检查. 2.就位、找正、找平、固定、试运转 | E7: 台 | F7: 1 | K7: 室外机 | L7: 设备费另计
A8: 2 | B8: 室外机 | C8: 1、名称：多联机室外机（AC-1-2F） 2、安装部位：室外 3、设备形式：顶出风全直流变频主机（喷气增焓压缩机） 4、参数：制冷量33.5KW，制热量37.5KW，IPLV9.6 5、安装符合规范要求，包含辅材 | D8: 1.开箱、检查. 2.就位、找正、找平、固定、试运转 | E8: 台 | F8: 1 | K8: 室外机 | L8: 设备费另计
A9: 3 | B9: 室外机 | C9: 1、名称：多联机室外机（AC-1-3F、AC-2-1F、AC-3-2F） 2、安装部位：室外 3、设备形式：顶出风全直流变频主机（喷气增焓压缩机） 4、参数：制冷量45KW，制热量50KW，IPLV9.2 5、安装符合规范要求，包含辅材 | D9: 1.开箱、检查. 2.就位、找正、找平、固定、试运转 | E9: 台 | F9: =1+1+1 -> 3 | K9: 室外机 | L9: 设备费另计
A10: 4 | B10: 室外机 | C10: 1、名称：多联机室外机（AC-2-1F） 2、安装部位：室外 3、设备形式：顶出风全直流变频主机（喷气增焓压缩机） 4、参数：制冷量61.5KW，制热量69KW，IPLV8.8 5、安装符合规范要求，包含辅材 | D10: 1.开箱、检查. 2.就位、找正、找平、固定、试运转 | E10: 台 | F10: 1 | K10: 室外机 | L10: 设备费另计
A11: 5 | B11: 室外机 | C11: 1、名称：多联机室外机（AC-3-1F） 2、安装部位：室外 3、设备形式：顶出风全直流变频主机（喷气增焓压缩机） 4、参数：制冷量56KW，制热量63KW，IPLV8.8 5、安装符合规范要求，包含辅材 | D11: 1.开箱、检查. 2.就位、找正、找平、固定、试运转 | E11: 台 | F11: 1 | K11: 室外机 | L11: 设备费另计
A12: 6 | B12: 室外机 | C12: 1、名称：多联机室外机（AC-4-1F+2F-1 AC-4-2F-2） 2、安装部位：室外 3、设备形式：顶出风全直流变频主机（喷气增焓压缩机） 4、参数：制冷量163.5KW，制热量182.5KW，IPLV8.3 5、安装符合规范要求，包含辅材 | D12: 1.开箱、检查. 2.就位、找正、找平、固定、试运转 | E12: 台 | F12: 2 | K12: 室外机 | L12: 设备费另计
A13: 7 | B13: 室外机 | C13: 1、名称：多联机室外机（AC-4-3F AC-4-3F-4） 2、安装部位：室外 3、设备形式：顶出风全直流变频主机（喷气增焓压缩机） 4、参数：制冷量134.5KW，制热量150.5KW，IPLV8.3 5、安装符合规范要求，包含辅材 | D13: 1.开箱、检查. 2.就位、找正、找平、固定、试运转 | E13: 台 | F13: 2 | K13: 室外机 | L13: 设备费另计
A14: 8 | B14: 室内机 | C14: 1、名称：多联体室内机 2、安装部位： 3、安装形式：吊装安装 4、设备形式：风管式 5、参数：制冷量4.5KW，制热量5KW 6、安装符合规范要求，包含辅材 | D14: 1.开箱、检查. 2.就位、找正、找平、固定、试运转 | E14: 台 | F14: 3 | K14: 室内机 | L14: 设备费另计
A15: 9 | B15: 室内机 | C15: 1、名称：多联体室内机 2、安装部位： 3、安装形式：吊装安装 4、设备形式：风管式 5、参数：制冷量2.8KW，制热量3.2KW 6、安装符合规范要求，包含辅材 | D15: 1.开箱、检查. 2.就位、找正、找平、固定、试运转 | E15: 台 | F15: 2 | K15: 室内机 | L15: 设备费另计
A16: 10 | B16: 室内机 | C16: 1、名称：多联体室内机 2、安装部位： 3、安装形式：吊装安装 4、设备形式：风管式 5、参数：制冷量7.1KW，制热量8KW 6、安装符合规范要求，包含辅材 | D16: 1.开箱、检查. 2.就位、找正、找平、固定、试运转 | E16: 台 | F16: 49 | K16: 室内机 | L16: 设备费另计
A17: 11 | B17: 室内机 | C17: 1、名称：多联体室内机 2、安装部位： 3、安装形式：吊装安装 4、设备形式：风管式 5、参数：制冷量8KW，制热量9KW 6、安装符合规范要求，包含辅材 | D17: 1.开箱、检查. 2.就位、找正、找平、固定、试运转 | E17: 台 | F17: 2 | K17: 室内机 | L17: 设备费另计
A18: 12 | B18: 室内机 | C18: 1、名称：多联体室内机 2、安装部位： 3、安装形式：吊装安装 4、设备形式：风管式 5、参数：制冷量10KW，制热量11.5KW 6、安装符合规范要求，包含辅材 | D18: 1.开箱、检查. 2.就位、找正、找平、固定、试运转 | E18: 台 | F18: 26 | K18: 室内机 | L18: 设备费另计
A19: 13 | B19: 室内机 | C19: 1、名称：多联体室内机 2、安装部位： 3、安装形式：吊装安装 4、设备形式：风管式 5、参数：制冷量12.5KW，制热量14KW 6、安装符合规范要求，包含辅材 | D19: 1.开箱、检查. 2.就位、找正、找平、固定、试运转 | E19: 台 | F19: 3 | K19: 室内机 | L19: 设备费另计
A20: 14 | B20: 优质脱氧化磷无缝紫铜管 | C20: 1、安装部位:室内 2、介质:R410a 3、规格、压力等级:φ31.8*1.2 4、连接形式:氧焊 5、压力试验及吹、洗设计要求:气压试验、空气吹扫 | D20: 留(打)堵墙(板)洞、调直、切管、坡口、焊接、管道及管件安装、水压试验及水冲洗. | E20: m | F20: =79+114 -> 193 | K20: 紫铜管
A21: 15 | B21: 优质脱氧化磷无缝紫铜管 | C21: 1、安装部位:室内 2、介质:R410a 3、规格、压力等级:φ28.6*1.2 4、连接形式:氧焊 5、压力试验及吹、洗设计要求:气压试验、空气吹扫 | D21: 留(打)堵墙(板)洞、调直、切管、坡口、焊接、管道及管件安装、水压试验及水冲洗. | E21: m | F21: 88.6 | K21: 紫铜管
A22: 16 | B22: 优质脱氧化磷无缝紫铜管 | C22: 1、安装部位:室内 2、介质:R410a 3、规格、压力等级:φ22.2*1.2 4、连接形式:氧焊 5、压力试验及吹、洗设计要求:气压试验、空气吹扫 | D22: 留(打)堵墙(板)洞、调直、切管、坡口、焊接、管道及管件安装、水压试验及水冲洗. | E22: m | F22: 63.17 | K22: 紫铜管
A23: 17 | B23: 优质脱氧化磷无缝紫铜管 | C23: 1、安装部位:室内 2、介质:R410a 3、规格、压力等级:φ19.05*1 4、连接形式:氧焊 5、压力试验及吹、洗设计要求:气压试验、空气吹扫 | D23: 留(打)堵墙(板)洞、调直、切管、坡口、焊接、管道及管件安装、水压试验及水冲洗. | E23: m | F23: =79+91.41 -> 170.41 | K23: 紫铜管
A24: 18 | B24: 优质脱氧化磷无缝紫铜管 | C24: 1、安装部位:室内 2、介质:R410a 3、规格、压力等级:φ15.88*1 4、连接形式:氧焊 5、压力试验及吹、洗设计要求:气压试验、空气吹扫 | D24: 留(打)堵墙(板)洞、调直、切管、坡口、焊接、管道及管件安装、水压试验及水冲洗. | E24: m | F24: =114+162.78 -> 276.78 | K24: 紫铜管
A25: 19 | B25: 优质脱氧化磷无缝紫铜管 | C25: 1、安装部位:室内 2、介质:R410a 3、规格、压力等级:φ12.7*0.8 4、连接形式:氧焊 5、压力试验及吹、洗设计要求:气压试验、空气吹扫 | D25: 留(打)堵墙(板)洞、调直、切管、坡口、焊接、管道及管件安装、水压试验及水冲洗. | E25: m | F25: 88.6 | K25: 紫铜管
A26: 20 | B26: 优质脱氧化磷无缝紫铜管 | C26: 1、安装部位:室内 2、介质:R410a 3、规格、压力等级:φ9.53*0.8 4、连接形式:氧焊 5、压力试验及吹、洗设计要求:气压试验、空气吹扫 | D26: 留(打)堵墙(板)洞、调直、切管、坡口、焊接、管道及管件安装、水压试验及水冲洗. | E26: m | F26: =63.17+91.41+162.78+207.69 -> 525.05 | K26: 紫铜管
A27: 21 | B27: 优质脱氧化磷无缝紫铜管 | C27: 1、安装部位:室内 2、介质:R410a 3、规格、压力等级:φ6.4*0.8 4、连接形式:氧焊 5、压力试验及吹、洗设计要求:气压试验、空气吹扫 | D27: 留(打)堵墙(板)洞、调直、切管、坡口、焊接、管道及管件安装、水压试验及水冲洗. | E27: m | F27: 207.69 | K27: 紫铜管
A28: 22 | B28: 分歧器 | C28: 1、1名称:分歧管 2、材质:铜 3、规格、压力等级:φ6.4~38.1 4、焊接方法:氧焊 | D28: 焊接、水压试验及水冲洗. | E28: 个 | F28: 80 | K28: 分歧器
A29: 23 | B29: 冷凝水PVC管 | C29: 1、安装部位:室内 2、介质:水 3、规格、压力等级:Φ32 4、压力试验及吹、洗设计要求:试压 | D29: 留(打)堵墙(板)洞、切管、组对、粘接, 管道及管件安装, 注水试验. | E29: m | F29: 545 | K29: PVC管
A30: 24 | B30: 碳钢通风管道 | C30: 1、名称:矩形风管 2、材质:镀锌铁皮 3、板材厚度:0.6mm 4、管件、法兰等附件及支架设计要求 ，咬口制作，法兰连接 | D30: 1.制作:放样、下料、折方、轧口、咬口、制作直管、管件、钻孔、焊接、组对.2.安装:找标高、打支架墙洞、配合预留孔洞、组装、风管就位、找平、找正、加密封胶条、螺栓、紧固. | E30: m2 | F30: =686.2*0.6 -> 411.72 | K30: 镀锌铁皮风管
A31: 25 | B31: 碳钢通风管道 | C31: 1、名称:矩形风管 2、材质:镀锌铁皮 3、板材厚度:0.8mm 4、管件、法兰等附件及支架设计要求 ，咬口制作，法兰连接 | D31: 1.制作:放样、下料、折方、轧口、咬口、制作直管、管件、钻孔、焊接、组对.2.安装:找标高、打支架墙洞、配合预留孔洞、组装、风管就位、找平、找正、加密封胶条、螺栓、紧固. | E31: m2 | F31: =686.2*0.4 -> 274.48 | K31: 镀锌铁皮风管
A32: 26 | B32: 百叶风口 | C32: 1、名称:双层活动百叶风口 2、规格:综合 3、材质：铝合金 | D32: 对口、上螺栓、制垫、加垫、找正、找平、固定、试动、调整. | E32: m2 | F32: 125.30 | K32: 百叶风口 | O32: =125.3/1.4 -> 89.5
A33: 27 | B33: 管道保温 | C33: 1、安装部位:铜管、PVC管 2、规格材质：橡塑管壳（难燃B1级）保温，厚度10mm | D33: 运料、下料、安装、贴缝、修理找平. | E33: m | F33: 1613 | K33: 保温材料
A34: 28 | B34: 管道保温 | C34: 1、安装部位:铜管、PVC管 2、规格材质：橡塑管壳（难燃B1级）保温，厚度20mm 3、保温胶带 | D34: 运料、下料、安装、贴缝、修理找平. | E34: m | F34: 545 | K34: 保温材料
A35: 29 | B35: 通风管道绝热 | C35: 1、安装部位:风管 2、绝热材料品种:离心玻璃棉（不燃A级）50mm 3、保温胶带 | D35: 运料、拆包、裁料、安装、贴缝、修理找平. | E35: m3 | F35: =686.2*0.05 -> 34.31 | K35: 保温材料
A36: 30 | B36: 设备支架 | C36: 1、名称：室内吊顶式空调支架制作安装 2、防锈处理 | D36: 切断、调直、煨制、钻孔、组对、焊接. | E36: 套 | F36: 85 | K36: 支架
A37: 31 | B37: 管道支架 | C37: 1、名称：PVC管、铜管支架制作安装 2、防锈处理 | D37: 切断、调直、煨制、钻孔、组对、焊接. | E37: 套 | F37: 430 | K37: 支架
A38: 32 | B38: 通风管支架 | C38: 1、碳钢通风管道支架制作安装 2、防锈处理 | D38: 切断、调直、煨制、钻孔、组对、焊接. | E38: kg | F38: =85*5 -> 425 | K38: 铁件
A39: 33 | B39: 冷媒添加 | C39: 1、空调管道加R410a | D39: 添加、密封 | E39: 项 | F39: 1 | K39: R410a
A40: 34 | B40: 线控器 | C40: 1、名称:线控器 2、安装方式:暗装，含接线盒 | D40: 安装盒体/面板、接线、连接处处理. | E40: 套 | F40: 32 | K40: 线控器 | L40: 线控器主材费另计
A41: 35 | B41: 配管 | C41: 1、规格：Φ20 2、敷设方式：沿墙暗敷，顶部明管 | D41: 测位、划线、接管、配管、固定、穿引线. | E41: m | F41: =32*8 -> 256 | K41: 电线管
A42: 36 | B42: 配线 | C42: 1、名称：信号线、控制线 2、规格：按品牌配置 | D42: 检查、抽测电缆、清理管道、布放电缆、绑扎电缆、封堵出口等. | E42: m | F42: =32*8*2 -> 512 | K42: 线缆
B43: 小计：
A44: （二） | B44: 排风工程
A45: 1 | B45: 碳钢通风管道 | C45: 1、名称:矩形风管 2、材质:镀锌铁皮 3、板材厚度:0.6mm 4、管件、法兰等附件及支架设计要求 ，咬口制作，法兰连接 | D45: 1.制作:放样、下料、折方、轧口、咬口、制作直管、管件、钻孔、焊接、组对.2.安装:找标高、打支架墙洞、配合预留孔洞、组装、风管就位、找平、找正、加密封胶条、螺栓、紧固. | E45: m2 | F45: 180.16 | K45: 镀锌铁皮风管
A46: 2 | B46: 碳钢通风管道 | C46: 1、名称:矩形风管 2、材质:镀锌铁皮 3、板材厚度:0.8mm 4、管件、法兰等附件及支架设计要求 ，咬口制作，法兰连接 | D46: 1.制作:放样、下料、折方、轧口、咬口、制作直管、管件、钻孔、焊接、组对.2.安装:找标高、打支架墙洞、配合预留孔洞、组装、风管就位、找平、找正、加密封胶条、螺栓、紧固. | E46: m2 | F46: =89*2 -> 178.00 | K46: 镀锌铁皮风管
A47: 3 | B47: 塑料通风管道 | C47: 1、名称:塑料风管 2、形状:圆形 3、规格:φ180 | D47: 就位、制垫、加垫、连接、找正、找平、固定. | E47: m | F47: =47.85/2 -> 23.93 | K47: 塑料风管 | M47: 1.15
A48: 4 | B48: 塑料通风管道 | C48: 1、名称:塑料风管 2、形状:圆形 3、规格:φ160 | D48: 就位、制垫、加垫、连接、找正、找平、固定. | E48: m | F48: =32.59/2 -> 16.30 | K48: 塑料风管
A49: 5 | B49: 塑料通风管道 | C49: 1.名称:塑料风管 2、形状:圆形 3、规格:φ140 | D49: 就位、制垫、加垫、连接、找正、找平、固定. | E49: m | F49: =77.08/2 -> 38.54 | K49: 塑料风管
A50: 6 | B50: 塑料通风管道 | C50: 1、名称:塑料风管 2、形状:圆形 3、规格:φ120 | D50: 就位、制垫、加垫、连接、找正、找平、固定. | E50: m | F50: =21.11/2 -> 10.56 | K50: 塑料风管
A51: 7 | B51: 塑料通风管道 | C51: 1、名称:塑料风管 2、形状:圆形 3、规格:φ100 | D51: 就位、制垫、加垫、连接、找正、找平、固定. | E51: m | F51: =1.04/2 -> 0.52 | K51: 塑料风管
A52: 8 | B52: 柔性软风管 | C52: 1、名称:防火帆布接头 | D52: 放样、下料、开孔、钻眼、铆接、焊接、成型、组装、加垫、紧螺栓、焊锡. | E52: m2 | F52: 25 | K52: 防火帆布
A53: 9 | B53: 百叶风口 | C53: 1、名称:防雨百叶 2、规格:综合 3、材质：铝合金 | D53: 对口、上螺栓、制垫、加垫、找正、找平、固定、试动、调整. | E53: m2 | F53: 5.2 | K53: 百叶风口
A54: 10 | B54: 百叶风口 | C54: 1、名称:门铰式回风百叶 2、规格:综合 3、材质：铝合金 | D54: 对口、上螺栓、制垫、加垫、找正、找平、固定、试动、调整. | E54: m2 | F54: 20 | K54: 百叶风口
A55: 11 | B55: 百叶风口 | C55: 1、名称:双层百叶送风口 2、规格:综合 3、材质：铝合金 3、材质：铝合金 | D55: 对口、上螺栓、制垫、加垫、找正、找平、固定、试动、调整. | E55: m2 | F55: 50 | K55: 百叶风口
A56: 12 | B56: 设备支架 | C56: 1、名称：室内吊顶式空调支架制作安装 2、防锈处理 | D56: 切断、调直、煨制、钻孔、组对、焊接. | E56: 套 | F56: 30 | K56: 支架
A57: 13 | B57: 管道支架 | C57: 1、名称：塑料风管支架制作安装 2、防锈处理 | D57: 切断、调直、煨制、钻孔、组对、焊接. | E57: 套 | F57: 20 | K57: 支架
A58: 14 | B58: 通风管支架 | C58: 1、碳钢通风管道支架制作安装 2、防锈处理 | D58: 切断、调直、煨制、钻孔、组对、焊接. | E58: kg | F58: =30*5*2 -> 300 | K58: 铁件
B59: 小计：
A60: （三） | B60: 新风工程
A61: 1 | B61: 新风机 | C61: 1、名称: 全热回收新风换气机 2、型号:风量300m3/h 全压：100Pa 3、安装形式:吊装 | D61: 1.开箱、检查. 2.就位、找正、找平、固定、试运转 | E61: 台 | F61: 2 | K61: 新风机 | L61: 设备费另计
A62: 2 | B62: 新风机 | C62: 1、名称: 全热回收新风换气机 2、型号:风量400m3/h 全压：100Pa 3、安装形式:吊装 | D62: 1.开箱、检查. 2.就位、找正、找平、固定、试运转 | E62: 台 | F62: 1 | K62: 新风机 | L62: 设备费另计
A63: 3 | B63: 新风机 | C63: 1、、名称: 全热回收新风换气机 2、型号:风量500m3/h 全压：100Pa 3、安装形式:吊装 | D63: 1.开箱、检查. 2.就位、找正、找平、固定、试运转 | E63: 台 | F63: 6 | K63: 新风机 | L63: 设备费另计
A64: 4 | B64: 新风机 | C64: 1、名称: 全热回收新风换气机 2、型号:风量5000m3/h 全压：100Pa 3、安装形式:吊装 | D64: 1.开箱、检查. 2.就位、找正、找平、固定、试运转 | E64: 台 | F64: 2 | K64: 新风机 | L64: 设备费另计
A65: 5 | B65: 碳钢通风管道 | C65: 1、名称:矩形风管 2、材质:镀锌铁皮 3、板材厚度:0.6mm 4、管件、法兰等附件及支架设计要求 ，咬口制作，法兰连接 | D65: 1.制作:放样、下料、折方、轧口、咬口、制作直管、管件、钻孔、焊接、组对.2.安装:找标高、打支架墙洞、配合预留孔洞、组装、风管就位、找平、找正、加密封胶条、螺栓、紧固. | E65: m2 | F65: 248.54 | K65: 镀锌铁皮风管
A66: 6 | B66: 碳钢通风管道 | C66: 1、名称:矩形风管 2、材质:镀锌铁皮 3、板材厚度:0.8mm 4、管件、法兰等附件及支架设计要求 ，咬口制作，法兰连接 | D66: 1.制作:放样、下料、折方、轧口、咬口、制作直管、管件、钻孔、焊接、组对.2.安装:找标高、打支架墙洞、配合预留孔洞、组装、风管就位、找平、找正、加密封胶条、螺栓、紧固. | E66: m2 | F66: =199*1.5 -> 298.5 | K66: 镀锌铁皮风管
A67: 7 | B67: 塑料通风管道 | C67: 1、名称:塑料风管 2、形状:圆形 3、规格:φ180 | D67: 就位、制垫、加垫、连接、找正、找平、固定. | E67: m | F67: =39.45/2 -> 19.725 | K67: 塑料风管
A68: 8 | B68: 塑料通风管道 | C68: 1、名称:塑料风管 2、形状:圆形 3、规格:φ160 | D68: 就位、制垫、加垫、连接、找正、找平、固定. | E68: m | F68: =87.39/2 -> 43.695 | K68: 塑料风管
A69: 9 | B69: 塑料通风管道 | C69: 1、名称:塑料风管 2、形状:圆形 3、规格:φ140 | D69: 就位、制垫、加垫、连接、找正、找平、固定. | E69: m | F69: =72.32/2 -> 36.16 | K69: 塑料风管
A70: 10 | B70: 塑料通风管道 | C70: 1、名称:塑料风管 2、形状:圆形 3、规格:φ120 | D70: 就位、制垫、加垫、连接、找正、找平、固定. | E70: m | F70: =8.89/2 -> 4.445 | K70: 塑料风管
A71: 11 | B71: 塑料通风管道 | C71: 1、名称:塑料风管 2、形状:圆形 3、规格:φ100 | D71: 就位、制垫、加垫、连接、找正、找平、固定. | E71: m | F71: =191.02/2 -> 95.51 | K71: 塑料风管
A72: 12 | B72: 柔性软风管 | C72: 1、名称:防火帆布接头 | D72: 放样、下料、开孔、钻眼、铆接、焊接、成型、组装、加垫、紧螺栓、焊锡. | E72: m2 | F72: 180 | K72: 防火帆布
A73: 13 | B73: 百叶风口 | C73: 1、名称:防雨百叶 2、规格:综合 3、材质：铝合金 | D73: 对口、上螺栓、制垫、加垫、找正、找平、固定、试动、调整. | E73: m2 | F73: 5.2 | K73: 百叶风口
A74: 14 | B74: 百叶风口 | C74: 1、名称:门铰式回风百叶 2、规格:综合 3、材质：铝合金 | D74: 对口、上螺栓、制垫、加垫、找正、找平、固定、试动、调整. | E74: m2 | F74: 20 | K74: 百叶风口
A75: 15 | B75: 百叶风口 | C75: 1、名称:双层百叶送风口 2、规格:综合 3、材质：铝合金 | D75: 对口、上螺栓、制垫、加垫、找正、找平、固定、试动、调整. | E75: m2 | F75: 50 | K75: 百叶风口
A76: 16 | B76: 设备支架 | C76: 1、名称：室内吊顶式空调支架制作安装 2、防锈处理 | D76: 切断、调直、煨制、钻孔、组对、焊接. | E76: 套 | F76: 11 | K76: 支架
A77: 17 | B77: 管道支架 | C77: 1、名称：塑料风管支架制作安装 2、防锈处理 | D77: 切断、调直、煨制、钻孔、组对、焊接. | E77: 套 | F77: 100 | K77: 支架
A78: 18 | B78: 通风管支架 | C78: 1、碳钢通风管道支架制作安装 2、防锈处理 | D78: 切断、调直、煨制、钻孔、组对、焊接. | E78: kg | F78: =50*5*2 -> 500 | K78: 铁件
A79: 19 | B79: 线控器 | C79: 1、名称:线控器 2、安装方式:暗装，含接线盒 | D79: 安装盒体/面板、接线、连接处处理. | E79: 套 | F79: 11 | K79: 线控器 | L79: 线控器主材费另计
A80: 20 | B80: 配管 | C80: 1、规格：Φ20 2、敷设方式：沿墙暗敷，顶部明管 | D80: 测位、划线、接管、配管、固定、穿引线. | E80: m | F80: =11*8 -> 88 | K80: 电线管
A81: 21 | B81: 配线 | C81: 1、名称：信号线、控制线 2、规格：按品牌配置 | D81: 检查、抽测电缆、清理管道、布放电缆、绑扎电缆、封堵出口等. | E81: m | F81: =11*8*2 -> 176 | K81: 线缆
B82: 小计：
B83: 合计：
A84: 1、全费用单价为包含人工费（包括人员加班工资、差旅及窝工费）、材料费、机械费、管理费、利润、风险、规费、税金的包工包料价格，包含深化设计、监理资料及竣工图绘制费用，包括水电、卸货（含主要设备）、材料保管、二次搬运、防锈、上楼、脚手架、各种保险、加班、临时设施、赶工措施、已完工项目成品保护措施、夜间照明、安全文明施工等费用，施工人员的食宿费、劳保费用、办公费、生活生产水电费、保险费也包含在报价里。其中：主要设备费/材料单价包含主要设备费、主要材料费、运输费、运输损耗费、施工损耗费及相关费用9%的增值税税金。安装单价包含人工费、机械费、管理费、利润、及除设备费、材料费以外其他所有费用及相关费用9%的增值税税金，包含系统系统检测及调试费。
A85: 2、设备费/材料、安装费报价税率按9%考虑，提供9%税率的增值税专用发票。
B87: 投标单位（公章）：
B88: 授权委托人：
B89: 日 期： 2020 年 月 日
